[Event "Titled Tuesday Blitz August 09 Early 2022"]
[White "Zaichenko, Daria"]
[Black "Kazancev, Valerij M"]
[WhiteFideId "4197453"]
[BlackFideId "4179609"]
[WhiteElo "2039"]
[BlackElo "2547"]
[Result "0-1"]
[Round "01"]
[TimeControl "180+1"]
[Date "2022.08.09"]
[WhiteClock "0:00:03"]
[BlackClock "0:00:14"]

1. e4 {[%clk 0:03:00]}  c5 {[%clk 0:02:59]} 2. Nf3 {[%clk 0:03:00]}  d6 {[%clk 0:02:59]} 3. d4 {[%clk 0:03:00]}  cxd4 {[%clk 0:03:00]} 4. Nxd4 {[%clk 0:03:01]}  Nf6 {[%clk 0:03:01]} 5. Nc3 {[%clk 0:03:01]}  a6 {[%clk 0:03:02]} 6. Be2 {[%clk 0:02:52]}  b5 {[%clk 0:03:01]} 7. Bf3 {[%clk 0:02:40]}  Ra7 {[%clk 0:03:01]} 8. O-O {[%clk 0:02:39]}  e6 {[%clk 0:02:59]} 9. g3 {[%clk 0:02:37]}  Rd7 {[%clk 0:02:57]} 10. Bg2 {[%clk 0:02:37]}  Bb7 {[%clk 0:02:57]} 11. a3 {[%clk 0:02:35]}  Be7 {[%clk 0:02:50]} 12. f4 {[%clk 0:02:35]}  h5 {[%clk 0:02:47]} 13. h3 {[%clk 0:02:12]}  g6 {[%clk 0:02:13]} 14. Be3 {[%clk 0:02:09]}  d5 {[%clk 0:02:03]} 15. e5 {[%clk 0:02:05]}  Ne4 {[%clk 0:02:03]} 16. Nxe4 {[%clk 0:01:52]}  dxe4 {[%clk 0:02:03]} 17. c3 {[%clk 0:01:51]}  Nc6 {[%clk 0:02:00]} 18. Qc2 {[%clk 0:01:50]}  O-O {[%clk 0:01:26]} 19. Bxe4 {[%clk 0:01:46]}  Nxd4 {[%clk 0:01:26]} 20. cxd4 {[%clk 0:01:41]}  Bxe4 {[%clk 0:01:15]} 21. Qxe4 {[%clk 0:01:40]}  Rd5 {[%clk 0:01:08]} 22. Rac1 {[%clk 0:01:39]}  Qd7 {[%clk 0:01:08]} 23. Rc2 {[%clk 0:01:33]}  Rd8 {[%clk 0:01:07]} 24. Kg2 {[%clk 0:01:29]}  b4 {[%clk 0:01:07]} 25. axb4 {[%clk 0:01:22]}  Qb5 {[%clk 0:01:04]} 26. Rfc1 {[%clk 0:01:17]}  Bxb4 {[%clk 0:01:01]} 27. g4 {[%clk 0:01:09]}  hxg4 {[%clk 0:00:47]} 28. hxg4 {[%clk 0:01:09]}  Bf8 {[%clk 0:00:35]} 29. f5 {[%clk 0:01:05]}  exf5 {[%clk 0:00:19]} 30. gxf5 {[%clk 0:01:05]}  gxf5 {[%clk 0:00:20]} 31. Qxf5 {[%clk 0:01:02]}  Bg7 {[%clk 0:00:21]} 32. Qg4 {[%clk 0:00:44]}  Qd3 {[%clk 0:00:20]} 33. Rc3 {[%clk 0:00:34]}  Qh7 {[%clk 0:00:17]} 34. Rh1 {[%clk 0:00:23]}  Qg6 {[%clk 0:00:17]} 35. Qxg6 {[%clk 0:00:23]}  fxg6 {[%clk 0:00:18]} 36. Rc6 {[%clk 0:00:22]}  Rb8 {[%clk 0:00:18]} 37. Rxg6 {[%clk 0:00:19]}  Rxb2+ {[%clk 0:00:17]} 38. Kf3 {[%clk 0:00:19]}  Kf7 {[%clk 0:00:18]} 39. Rhg1 {[%clk 0:00:20]}  Bxe5 {[%clk 0:00:18]} 40. dxe5 {[%clk 0:00:17]}  Rxe5 {[%clk 0:00:19]} 41. Bd4 {[%clk 0:00:15]}  Rb3+ {[%clk 0:00:19]} 42. Kf4 {[%clk 0:00:15]}  Rd5 {[%clk 0:00:18]} 43. Rf6+ {[%clk 0:00:15]}  Ke8 {[%clk 0:00:16]} 44. Rg8+ {[%clk 0:00:13]}  Ke7 {[%clk 0:00:17]} 45. Rg7+ {[%clk 0:00:13]}  Ke8 {[%clk 0:00:17]} 46. Re6+ {[%clk 0:00:12]}  Kf8 {[%clk 0:00:17]} 47. Bf6 {[%clk 0:00:08]}  Rb4+ {[%clk 0:00:17]} 48. Re4 {[%clk 0:00:06]}  Rxe4+ {[%clk 0:00:16]} 49. Kxe4 {[%clk 0:00:06]}  Rb5 {[%clk 0:00:16]} 50. Ra7 {[%clk 0:00:05]}  a5 {[%clk 0:00:16]} 51. Bc3 {[%clk 0:00:03]}  Rb1 {[%clk 0:00:14]} 0-1


[Site "https://www.chess.com"]

[Event "Titled Tuesday Blitz August 09 Early 2022"]
[White "Zainullina, Nataliya"]
[Black "Omariev, Maksim"]
[WhiteFideId "4145488"]
[BlackFideId "4193423"]
[WhiteElo "2057"]
[BlackElo "2523"]
[Result "0-1"]
[Round "01"]
[TimeControl "180+1"]
[Date "2022.08.09"]
[WhiteClock "0:00:04"]
[BlackClock "0:00:01"]

1. Nf3 {[%clk 0:02:55]}  d5 {[%clk 0:02:59]} 2. g3 {[%clk 0:02:54]}  Nf6 {[%clk 0:02:59]} 3. Bg2 {[%clk 0:02:55]}  c6 {[%clk 0:03:00]} 4. O-O {[%clk 0:02:55]}  Bf5 {[%clk 0:03:01]} 5. d3 {[%clk 0:02:55]}  e6 {[%clk 0:03:02]} 6. Nh4 {[%clk 0:02:54]}  Bg4 {[%clk 0:03:02]} 7. h3 {[%clk 0:02:54]}  Bh5 {[%clk 0:03:02]} 8. g4 {[%clk 0:02:54]}  Bg6 {[%clk 0:03:03]} 9. Bg5 {[%clk 0:02:52]}  Be7 {[%clk 0:02:59]} 10. Nd2 {[%clk 0:02:45]}  Nfd7 {[%clk 0:02:34]} 11. Bxe7 {[%clk 0:02:40]}  Qxe7 {[%clk 0:02:34]} 12. Nxg6 {[%clk 0:02:40]}  hxg6 {[%clk 0:02:35]} 13. e4 {[%clk 0:02:40]}  dxe4 {[%clk 0:02:22]} 14. Nxe4 {[%clk 0:02:32]}  Na6 {[%clk 0:02:17]} 15. Qf3 {[%clk 0:02:24]}  O-O-O {[%clk 0:02:06]} 16. Qg3 {[%clk 0:02:22]}  e5 {[%clk 0:01:49]} 17. a3 {[%clk 0:02:21]}  f5 {[%clk 0:01:46]} 18. gxf5 {[%clk 0:02:15]}  gxf5 {[%clk 0:01:47]} 19. Ng5 {[%clk 0:02:16]}  f4 {[%clk 0:01:22]} 20. Qg4 {[%clk 0:02:16]}  Kb8 {[%clk 0:01:23]} 21. b4 {[%clk 0:01:39]}  Nc7 {[%clk 0:01:22]} 22. c4 {[%clk 0:01:37]}  Nf6 {[%clk 0:01:22]} 23. Qf3 {[%clk 0:01:26]}  Nd7 {[%clk 0:00:35]} 24. Qg4 {[%clk 0:01:19]}  Rh6 {[%clk 0:00:30]} 25. Be4 {[%clk 0:01:17]}  Nf6 {[%clk 0:00:30]} 26. Qf3 {[%clk 0:00:53]}  Nxe4 {[%clk 0:00:29]} 27. Nxe4 {[%clk 0:00:54]}  Rdh8 {[%clk 0:00:30]} 28. Kg2 {[%clk 0:00:50]}  Ne6 {[%clk 0:00:29]} 29. Rh1 {[%clk 0:00:47]}  Nd4 {[%clk 0:00:29]} 30. Qg4 {[%clk 0:00:38]}  f3+ {[%clk 0:00:27]} 31. Kf1 {[%clk 0:00:37]}  Rh4 {[%clk 0:00:27]} 32. Qg6 {[%clk 0:00:34]}  Rxh3 {[%clk 0:00:23]} 33. Rxh3 {[%clk 0:00:27]}  Rxh3 {[%clk 0:00:24]} 34. Ng3 {[%clk 0:00:28]}  Rh6 {[%clk 0:00:15]} 35. Qg4 {[%clk 0:00:23]}  Qf6 {[%clk 0:00:05]} 36. Rd1 {[%clk 0:00:13]}  a6 {[%clk 0:00:04]} 37. Ke1 {[%clk 0:00:14]}  Qf4 {[%clk 0:00:03]} 38. Qxg7 {[%clk 0:00:08]}  Rh2 {[%clk 0:00:02]} 39. Qg8+ {[%clk 0:00:07]}  Ka7 {[%clk 0:00:02]} 40. Qg7 {[%clk 0:00:04]}  Nb3 {[%clk 0:00:01]} 0-1


[Site "https://www.chess.com"]

[Event "Titled Tuesday Blitz August 09 Early 2022"]
[White "Zhukov, Maksim"]
[Black "Hua, Lefong"]
[WhiteFideId "34181790"]
[BlackFideId "2602253"]
[WhiteElo "1978"]
[BlackElo "2599"]
[Result "0-1"]
[Round "01"]
[TimeControl "180+1"]
[Date "2022.08.09"]
[WhiteClock "0:00:18"]
[BlackClock "0:00:17"]

1. d4 {[%clk 0:03:00]}  Nf6 {[%clk 0:02:59]} 2. Nf3 {[%clk 0:03:00]}  g6 {[%clk 0:02:59]} 3. g3 {[%clk 0:03:01]}  Bg7 {[%clk 0:03:00]} 4. Bg2 {[%clk 0:03:02]}  O-O {[%clk 0:03:00]} 5. O-O {[%clk 0:03:03]}  c5 {[%clk 0:02:58]} 6. c4 {[%clk 0:03:00]}  d6 {[%clk 0:02:58]} 7. dxc5 {[%clk 0:02:59]}  dxc5 {[%clk 0:02:58]} 8. Ne5 {[%clk 0:02:59]}  Nbd7 {[%clk 0:02:50]} 9. Nd3 {[%clk 0:02:57]}  Nb6 {[%clk 0:02:42]} 10. Na3 {[%clk 0:02:32]}  a6 {[%clk 0:02:24]} 11. Bf4 {[%clk 0:01:52]}  Nfd7 {[%clk 0:01:57]} 12. Rc1 {[%clk 0:01:49]}  e5 {[%clk 0:01:52]} 13. Be3 {[%clk 0:01:49]}  Qe7 {[%clk 0:01:50]} 14. Qb3 {[%clk 0:01:41]}  Kh8 {[%clk 0:01:21]} 15. Nxc5 {[%clk 0:01:27]}  Nxc5 {[%clk 0:01:21]} 16. Qxb6 {[%clk 0:01:27]}  Ne6 {[%clk 0:01:21]} 17. Nc2 {[%clk 0:01:19]}  f5 {[%clk 0:01:13]} 18. Rfd1 {[%clk 0:01:04]}  f4 {[%clk 0:01:08]} 19. Bd2 {[%clk 0:01:03]}  Qc7 {[%clk 0:00:58]} 20. Qxc7 {[%clk 0:00:43]}  Nxc7 {[%clk 0:00:59]} 21. Bb4 {[%clk 0:00:44]}  Re8 {[%clk 0:00:56]} 22. Bd6 {[%clk 0:00:37]}  Ne6 {[%clk 0:00:53]} 23. b3 {[%clk 0:00:38]}  Nd4 {[%clk 0:00:45]} 24. Nxd4 {[%clk 0:00:33]}  exd4 {[%clk 0:00:46]} 25. Bf3 {[%clk 0:00:30]}  fxg3 {[%clk 0:00:41]} 26. hxg3 {[%clk 0:00:31]}  a5 {[%clk 0:00:39]} 27. Bc5 {[%clk 0:00:30]}  Rd8 {[%clk 0:00:35]} 28. Rc2 {[%clk 0:00:28]}  a4 {[%clk 0:00:25]} 29. Rcd2 {[%clk 0:00:28]}  axb3 {[%clk 0:00:23]} 30. axb3 {[%clk 0:00:29]}  Bf5 {[%clk 0:00:19]} 31. Bxd4 {[%clk 0:00:29]}  Bxd4 {[%clk 0:00:19]} 32. Rxd4 {[%clk 0:00:30]}  Rxd4 {[%clk 0:00:19]} 33. Rxd4 {[%clk 0:00:31]}  Ra3 {[%clk 0:00:17]} 34. b4 {[%clk 0:00:28]}  b6 {[%clk 0:00:14]} 35. c5 {[%clk 0:00:22]}  bxc5 {[%clk 0:00:14]} 36. bxc5 {[%clk 0:00:23]}  Rc3 {[%clk 0:00:14]} 37. c6 {[%clk 0:00:23]}  Kg7 {[%clk 0:00:14]} 38. Rd7+ {[%clk 0:00:21]}  Bxd7 {[%clk 0:00:13]} 39. cxd7 {[%clk 0:00:22]}  Rc1+ {[%clk 0:00:13]} 40. Kg2 {[%clk 0:00:21]}  Rd1 {[%clk 0:00:14]} 41. Bc6 {[%clk 0:00:21]}  Kf6 {[%clk 0:00:13]} 42. Kf3 {[%clk 0:00:22]}  Ke7 {[%clk 0:00:14]} 43. Ba4 {[%clk 0:00:23]}  Rd4 {[%clk 0:00:14]} 44. Bb5 {[%clk 0:00:22]}  Rd5 {[%clk 0:00:14]} 45. Ba4 {[%clk 0:00:20]}  Ra5 {[%clk 0:00:14]} 46. Bc6 {[%clk 0:00:19]}  Ra6 {[%clk 0:00:15]} 47. Bb5 {[%clk 0:00:20]}  Rb6 {[%clk 0:00:15]} 48. Ba4 {[%clk 0:00:20]}  h5 {[%clk 0:00:16]} 49. e3 {[%clk 0:00:20]}  g5 {[%clk 0:00:16]} 50. Kg2 {[%clk 0:00:18]}  Rb4 {[%clk 0:00:14]} 51. Bd1 {[%clk 0:00:19]}  g4 {[%clk 0:00:13]} 52. f3 {[%clk 0:00:18]}  Rb2+ {[%clk 0:00:13]} 53. Kf1 {[%clk 0:00:19]}  Rd2 {[%clk 0:00:13]} 54. Ke1 {[%clk 0:00:18]}  Rxd7 {[%clk 0:00:11]} 55. fxg4 {[%clk 0:00:18]}  hxg4 {[%clk 0:00:11]} 56. Bxg4 {[%clk 0:00:19]}  Rc7 {[%clk 0:00:12]} 57. Kf2 {[%clk 0:00:19]}  Kf6 {[%clk 0:00:13]} 58. Kf3 {[%clk 0:00:20]}  Ke5 {[%clk 0:00:14]} 59. Bh5 {[%clk 0:00:20]}  Rh7 {[%clk 0:00:13]} 60. Bg6 {[%clk 0:00:21]}  Rg7 {[%clk 0:00:14]} 61. Bd3 {[%clk 0:00:20]}  Rd7 {[%clk 0:00:13]} 62. Bg6 {[%clk 0:00:18]}  Rd6 {[%clk 0:00:14]} 63. Bh5 {[%clk 0:00:17]}  Rh6 {[%clk 0:00:13]} 64. Be8 {[%clk 0:00:17]}  Rh8 {[%clk 0:00:13]} 65. Bb5 {[%clk 0:00:17]}  Rf8+ {[%clk 0:00:13]} 66. Ke2 {[%clk 0:00:17]}  Rb8 {[%clk 0:00:13]} 67. Bd3 {[%clk 0:00:17]}  Rg8 {[%clk 0:00:13]} 68. Kf3 {[%clk 0:00:17]}  Rf8+ {[%clk 0:00:13]} 69. Kg2 {[%clk 0:00:17]}  Rd8 {[%clk 0:00:14]} 70. Be2 {[%clk 0:00:15]}  Rd2 {[%clk 0:00:15]} 71. Kf3 {[%clk 0:00:15]}  Kf5 {[%clk 0:00:15]} 72. g4+ {[%clk 0:00:14]}  Ke5 {[%clk 0:00:16]} 73. Bb5 {[%clk 0:00:11]}  Rb2 {[%clk 0:00:15]} 74. Ba6 {[%clk 0:00:12]}  Rb6 {[%clk 0:00:16]} 75. Bc8 {[%clk 0:00:13]}  Rf6+ {[%clk 0:00:16]} 76. Bf5 {[%clk 0:00:14]}  Rf8 {[%clk 0:00:16]} 77. e4 {[%clk 0:00:14]}  Rg8 {[%clk 0:00:16]} 78. Kg3 {[%clk 0:00:15]}  Rh8 {[%clk 0:00:17]} 79. g5 {[%clk 0:00:15]}  Rh1 {[%clk 0:00:17]} 80. Kg4 {[%clk 0:00:16]}  Rg1+ {[%clk 0:00:16]} 81. Kh5 {[%clk 0:00:16]}  Kd6 {[%clk 0:00:16]} 82. Kg6 {[%clk 0:00:17]}  Ke7 {[%clk 0:00:16]} 83. e5 {[%clk 0:00:17]}  Re1 {[%clk 0:00:15]} 84. e6 {[%clk 0:00:16]}  Rh1 {[%clk 0:00:16]} 85. Kg7 {[%clk 0:00:17]}  Rf1 {[%clk 0:00:16]} 86. Be4 {[%clk 0:00:17]}  Re1 {[%clk 0:00:17]} 87. Bf5 {[%clk 0:00:17]}  Rf1 {[%clk 0:00:17]} 88. Kg6 {[%clk 0:00:16]}  Rf2 {[%clk 0:00:17]} 89. Bg4 {[%clk 0:00:13]}  Rf4 {[%clk 0:00:16]} 90. Bh3 {[%clk 0:00:12]}  Rf3 {[%clk 0:00:16]} 91. Bf5 {[%clk 0:00:12]}  Rf1 {[%clk 0:00:16]} 92. Bg4 {[%clk 0:00:13]}  Rg1 {[%clk 0:00:16]} 93. Kh5 {[%clk 0:00:13]}  Rh1+ {[%clk 0:00:16]} 94. Kg6 {[%clk 0:00:14]}  Rg1 {[%clk 0:00:16]} 95. Kh5 {[%clk 0:00:14]}  Kf8 {[%clk 0:00:17]} 96. g6 {[%clk 0:00:14]}  Kg7 {[%clk 0:00:16]} 97. Kg5 {[%clk 0:00:15]}  Rf1 {[%clk 0:00:16]} 98. Bf5 {[%clk 0:00:15]}  Rg1+ {[%clk 0:00:16]} 99. Kf4 {[%clk 0:00:16]}  Kf6 {[%clk 0:00:16]} 100. Ke4 {[%clk 0:00:16]}  Re1+ {[%clk 0:00:16]} 101. Kf4 {[%clk 0:00:16]}  Rf1+ {[%clk 0:00:17]} 102. Kg4 {[%clk 0:00:17]}  Rxf5 {[%clk 0:00:17]} 103. e7 {[%clk 0:00:18]}  Re5 {[%clk 0:00:17]} 104. g7 {[%clk 0:00:17]}  Kxg7 {[%clk 0:00:17]} 105. e8=Q {[%clk 0:00:18]}  Rxe8 {[%clk 0:00:17]} 0-1


[Site "https://www.chess.com"]

[Event "Titled Tuesday Blitz August 09 Early 2022"]
[White "Zierk, Steven"]
[Black "Nurmanova, Alua"]
[WhiteFideId "2034255"]
[BlackFideId "13729390"]
[WhiteElo "2494"]
[BlackElo "1921"]
[Result "1/2-1/2"]
[Round "01"]
[TimeControl "180+1"]
[Date "2022.08.09"]
[WhiteClock "0:00:19"]
[BlackClock "0:00:06"]

1. e4 {[%clk 0:02:59]}  c5 {[%clk 0:02:57]} 2. Nf3 {[%clk 0:02:58]}  d6 {[%clk 0:02:57]} 3. d4 {[%clk 0:02:58]}  cxd4 {[%clk 0:02:58]} 4. Nxd4 {[%clk 0:02:59]}  Nf6 {[%clk 0:02:57]} 5. Nc3 {[%clk 0:02:59]}  a6 {[%clk 0:02:57]} 6. h3 {[%clk 0:02:59]}  e5 {[%clk 0:02:56]} 7. Nde2 {[%clk 0:02:59]}  h5 {[%clk 0:02:54]} 8. Bg5 {[%clk 0:02:58]}  Be6 {[%clk 0:02:47]} 9. Bxf6 {[%clk 0:02:57]}  Qxf6 {[%clk 0:02:47]} 10. Nd5 {[%clk 0:02:56]}  Qd8 {[%clk 0:02:45]} 11. Qd3 {[%clk 0:02:56]}  Nd7 {[%clk 0:02:42]} 12. O-O-O {[%clk 0:02:55]}  Qa5 {[%clk 0:02:21]} 13. b4 {[%clk 0:02:14]}  Qd8 {[%clk 0:01:28]} 14. f4 {[%clk 0:02:08]}  b5 {[%clk 0:01:22]} 15. Nec3 {[%clk 0:01:50]}  Nb6 {[%clk 0:01:19]} 16. Qg3 {[%clk 0:01:37]}  h4 {[%clk 0:01:11]} 17. Qf2 {[%clk 0:01:35]}  Bxd5 {[%clk 0:01:06]} 18. Nxd5 {[%clk 0:01:36]}  Nxd5 {[%clk 0:01:05]} 19. Rxd5 {[%clk 0:01:36]}  Qc7 {[%clk 0:01:04]} 20. Be2 {[%clk 0:01:13]}  Qc3 {[%clk 0:00:54]} 21. fxe5 {[%clk 0:01:07]}  Qa1+ {[%clk 0:00:46]} 22. Kd2 {[%clk 0:01:06]}  Qxh1 {[%clk 0:00:46]} 23. exd6 {[%clk 0:01:05]}  Bxd6 {[%clk 0:00:34]} 24. Rxd6 {[%clk 0:01:03]}  O-O {[%clk 0:00:33]} 25. Qxh4 {[%clk 0:00:45]}  Qxg2 {[%clk 0:00:32]} 26. Rd4 {[%clk 0:00:36]}  Rac8 {[%clk 0:00:27]} 27. c3 {[%clk 0:00:33]}  Rfe8 {[%clk 0:00:25]} 28. Qf4 {[%clk 0:00:28]}  Qxh3 {[%clk 0:00:20]} 29. Rd3 {[%clk 0:00:23]}  Qe6 {[%clk 0:00:19]} 30. Bg4 {[%clk 0:00:20]}  Qxa2+ {[%clk 0:00:19]} 31. Ke3 {[%clk 0:00:20]}  Rcd8 {[%clk 0:00:19]} 32. Bd7 {[%clk 0:00:19]}  Re7 {[%clk 0:00:18]} 33. Qc7 {[%clk 0:00:19]}  Rf8 {[%clk 0:00:16]} 34. Qc5 {[%clk 0:00:19]}  Rxd7 {[%clk 0:00:11]} 35. Rxd7 {[%clk 0:00:20]}  Qe6 {[%clk 0:00:11]} 36. Rd6 {[%clk 0:00:20]}  Qh3+ {[%clk 0:00:11]} 37. Kd4 {[%clk 0:00:20]}  Qf3 {[%clk 0:00:11]} 38. Rxa6 {[%clk 0:00:17]}  Qf2+ {[%clk 0:00:11]} 39. Kd5 {[%clk 0:00:16]}  Rd8+ {[%clk 0:00:11]} 40. Rd6 {[%clk 0:00:17]}  Qd2+ {[%clk 0:00:11]} 41. Kc6 {[%clk 0:00:17]}  Rxd6+ {[%clk 0:00:10]} 42. Qxd6 {[%clk 0:00:17]}  Qxd6+ {[%clk 0:00:10]} 43. Kxd6 {[%clk 0:00:18]}  g5 {[%clk 0:00:08]} 44. Ke5 {[%clk 0:00:18]}  f6+ {[%clk 0:00:08]} 45. Kf5 {[%clk 0:00:18]}  Kf7 {[%clk 0:00:08]} 46. c4 {[%clk 0:00:16]}  bxc4 {[%clk 0:00:08]} 47. b5 {[%clk 0:00:17]}  c3 {[%clk 0:00:07]} 48. b6 {[%clk 0:00:18]}  c2 {[%clk 0:00:08]} 49. b7 {[%clk 0:00:18]}  c1=Q {[%clk 0:00:08]} 50. b8=Q {[%clk 0:00:19]}  Qc5+ {[%clk 0:00:07]} 51. Kg4 {[%clk 0:00:19]}  Qg1+ {[%clk 0:00:06]} 52. Kf3 {[%clk 0:00:20]}  Qf1+ {[%clk 0:00:07]} 53. Ke3 {[%clk 0:00:20]}  Qe1+ {[%clk 0:00:07]} 54. Kf3 {[%clk 0:00:20]}  Qd1+ {[%clk 0:00:07]} 55. Ke3 {[%clk 0:00:20]}  Qc1+ {[%clk 0:00:07]} 56. Kf3 {[%clk 0:00:21]}  Qc3+ {[%clk 0:00:08]} 57. Kg4 {[%clk 0:00:20]}  Qe3 {[%clk 0:00:06]} 58. Qa8 {[%clk 0:00:19]}  Qe2+ {[%clk 0:00:05]} 59. Kg3 {[%clk 0:00:19]}  Kg6 {[%clk 0:00:05]} 60. Qg8+ {[%clk 0:00:19]}  Kh6 {[%clk 0:00:05]} 61. Qh8+ {[%clk 0:00:19]}  Kg6 {[%clk 0:00:06]} 62. Qg8+ {[%clk 0:00:20]}  Kh6 {[%clk 0:00:06]} 63. Qf8+ {[%clk 0:00:19]}  Kg6 {[%clk 0:00:06]} 64. Qg8+ {[%clk 0:00:19]} 1/2-1/2


[Site "https://www.chess.com"]

[Event "Titled Tuesday Blitz August 09 Early 2022"]
[White "Aldokhin, Ivan"]
[Black "Matlakov, Maxim"]
[WhiteFideId "24115720"]
[BlackFideId "4168003"]
[WhiteElo "2246"]
[BlackElo "2669"]
[Result "1-0"]
[Round "02"]
[TimeControl "180+1"]
[Date "2022.08.09"]
[WhiteClock "0:00:06"]
[BlackClock "0:01:01"]

1. e4 {[%clk 0:02:58]}  c5 {[%clk 0:03:00]} 2. Nf3 {[%clk 0:02:59]}  d6 {[%clk 0:03:00]} 3. d4 {[%clk 0:02:59]}  cxd4 {[%clk 0:03:01]} 4. Nxd4 {[%clk 0:03:00]}  Nf6 {[%clk 0:03:02]} 5. Nc3 {[%clk 0:03:00]}  a6 {[%clk 0:03:02]} 6. Bc4 {[%clk 0:03:01]}  e6 {[%clk 0:03:02]} 7. Bb3 {[%clk 0:03:01]}  b5 {[%clk 0:03:01]} 8. O-O {[%clk 0:02:59]}  Be7 {[%clk 0:03:00]} 9. Qf3 {[%clk 0:02:58]}  Qb6 {[%clk 0:03:00]} 10. Be3 {[%clk 0:02:58]}  Qb7 {[%clk 0:03:00]} 11. Rfe1 {[%clk 0:02:57]}  Nbd7 {[%clk 0:02:59]} 12. Qg3 {[%clk 0:02:27]}  Nc5 {[%clk 0:02:57]} 13. f3 {[%clk 0:02:21]}  O-O {[%clk 0:02:55]} 14. Rad1 {[%clk 0:02:17]}  Kh8 {[%clk 0:02:48]} 15. e5 {[%clk 0:01:56]}  dxe5 {[%clk 0:02:41]} 16. Qxe5 {[%clk 0:01:56]}  Nxb3 {[%clk 0:02:27]} 17. Nxb3 {[%clk 0:01:55]}  b4 {[%clk 0:02:20]} 18. Na4 {[%clk 0:01:46]}  Qb5 {[%clk 0:02:18]} 19. Bc5 {[%clk 0:01:19]}  Bxc5+ {[%clk 0:02:07]} 20. Naxc5 {[%clk 0:01:04]}  Bb7 {[%clk 0:02:04]} 21. Nd4 {[%clk 0:00:32]}  Qb6 {[%clk 0:02:04]} 22. Na4 {[%clk 0:00:23]}  Qa7 {[%clk 0:02:01]} 23. Kh1 {[%clk 0:00:20]}  Bd5 {[%clk 0:01:59]} 24. b3 {[%clk 0:00:16]}  Rac8 {[%clk 0:01:58]} 25. Rc1 {[%clk 0:00:15]}  Rfd8 {[%clk 0:01:55]} 26. c4 {[%clk 0:00:13]}  bxc3 {[%clk 0:01:55]} 27. Rxc3 {[%clk 0:00:12]}  Rxc3 {[%clk 0:01:50]} 28. Nxc3 {[%clk 0:00:12]}  Ba8 {[%clk 0:01:50]} 29. Nde2 {[%clk 0:00:11]}  Qf2 {[%clk 0:01:47]} 30. Qg3 {[%clk 0:00:11]}  Qc5 {[%clk 0:01:45]} 31. Qf4 {[%clk 0:00:07]}  h6 {[%clk 0:01:43]} 32. h3 {[%clk 0:00:07]}  a5 {[%clk 0:01:42]} 33. Qc1 {[%clk 0:00:07]}  Nh5 {[%clk 0:01:40]} 34. Ne4 {[%clk 0:00:04]}  Qb6 {[%clk 0:01:33]} 35. N2c3 {[%clk 0:00:03]}  f5 {[%clk 0:01:30]} 36. Nd2 {[%clk 0:00:03]}  Ng3+ {[%clk 0:01:30]} 37. Kh2 {[%clk 0:00:04]}  Qb8 {[%clk 0:01:30]} 38. Kg1 {[%clk 0:00:03]}  Qa7+ {[%clk 0:01:25]} 39. Kh2 {[%clk 0:00:03]}  Qf2 {[%clk 0:01:26]} 40. Nc4 {[%clk 0:00:03]}  Bxf3 {[%clk 0:01:24]} 41. Rg1 {[%clk 0:00:02]}  Nf1+ {[%clk 0:01:24]} 42. Qxf1 {[%clk 0:00:02]}  Qxf1 {[%clk 0:01:19]} 43. Rxf1 {[%clk 0:00:03]}  Ba8 {[%clk 0:01:19]} 44. Re1 {[%clk 0:00:04]}  Rd3 {[%clk 0:01:19]} 45. Nb5 {[%clk 0:00:04]}  Bd5 {[%clk 0:01:19]} 46. Nc7 {[%clk 0:00:04]}  a4 {[%clk 0:01:14]} 47. Nb6 {[%clk 0:00:03]}  axb3 {[%clk 0:01:14]} 48. axb3 {[%clk 0:00:03]}  Bxb3 {[%clk 0:01:14]} 49. Re5 {[%clk 0:00:04]}  Rd6 {[%clk 0:01:11]} 50. Nc8 {[%clk 0:00:03]}  Rc6 {[%clk 0:01:10]} 51. Nxe6 {[%clk 0:00:03]}  Rxe6 {[%clk 0:00:57]} 52. Rxe6 {[%clk 0:00:03]}  Bxe6 {[%clk 0:00:58]} 53. Nd6 {[%clk 0:00:03]}  g5 {[%clk 0:00:58]} 54. Kg3 {[%clk 0:00:03]}  Kg7 {[%clk 0:00:59]} 55. h4 {[%clk 0:00:04]}  f4+ {[%clk 0:00:58]} 56. Kf3 {[%clk 0:00:03]}  Bd5+ {[%clk 0:00:58]} 57. Kf2 {[%clk 0:00:02]}  g4 {[%clk 0:00:57]} 58. Nf5+ {[%clk 0:00:03]}  Kg6 {[%clk 0:00:57]} 59. Ne7+ {[%clk 0:00:03]}  Kh5 {[%clk 0:00:57]} 60. Nxd5 {[%clk 0:00:03]}  Kxh4 {[%clk 0:00:56]} 61. Nxf4 {[%clk 0:00:04]}  Kg5 {[%clk 0:00:56]} 62. g3 {[%clk 0:00:03]}  h5 {[%clk 0:00:57]} 63. Ng2 {[%clk 0:00:03]}  Kf5 {[%clk 0:00:58]} 64. Ke3 {[%clk 0:00:04]}  Ke5 {[%clk 0:00:58]} 65. Nh4 {[%clk 0:00:04]}  Kd5 {[%clk 0:00:58]} 66. Kf4 {[%clk 0:00:04]}  Kd4 {[%clk 0:00:59]} 67. Kg5 {[%clk 0:00:05]}  Ke3 {[%clk 0:01:00]} 68. Kxh5 {[%clk 0:00:05]}  Kf2 {[%clk 0:01:01]} 69. Kxg4 {[%clk 0:00:06]} 1-0


[Site "https://www.chess.com"]

[Event "Titled Tuesday Blitz August 09 Early 2022"]
[White "Antonio, Rogelio Jr"]
[Black "Begunov, Konstantin"]
[WhiteFideId "5200032"]
[BlackFideId "4118510"]
[WhiteElo "2415"]
[BlackElo "2262"]
[Result "1-0"]
[Round "02"]
[TimeControl "180+1"]
[Date "2022.08.09"]
[WhiteClock "0:01:49"]
[BlackClock "0:00:02"]

1. e4 {[%clk 0:03:00]}  c5 {[%clk 0:02:57]} 2. d4 {[%clk 0:03:00]}  cxd4 {[%clk 0:02:56]} 3. c3 {[%clk 0:03:01]}  Nf6 {[%clk 0:02:56]} 4. e5 {[%clk 0:03:00]}  Nd5 {[%clk 0:02:56]} 5. cxd4 {[%clk 0:03:01]}  Nc6 {[%clk 0:02:56]} 6. Bc4 {[%clk 0:03:01]}  Nb6 {[%clk 0:02:56]} 7. Bb3 {[%clk 0:03:01]}  d5 {[%clk 0:02:56]} 8. Nc3 {[%clk 0:03:00]}  Bf5 {[%clk 0:02:52]} 9. g4 {[%clk 0:03:00]}  Bg6 {[%clk 0:02:46]} 10. Nge2 {[%clk 0:03:00]}  e6 {[%clk 0:02:46]} 11. h4 {[%clk 0:02:59]}  h6 {[%clk 0:02:28]} 12. Nf4 {[%clk 0:03:00]}  Bh7 {[%clk 0:02:20]} 13. Be3 {[%clk 0:02:45]}  Rc8 {[%clk 0:02:18]} 14. g5 {[%clk 0:02:43]}  Be7 {[%clk 0:01:56]} 15. g6 {[%clk 0:02:40]}  Bxg6 {[%clk 0:01:56]} 16. Nxg6 {[%clk 0:02:40]}  fxg6 {[%clk 0:01:57]} 17. Qg4 {[%clk 0:02:40]}  O-O {[%clk 0:01:22]} 18. Qxe6+ {[%clk 0:02:35]}  Kh7 {[%clk 0:01:22]} 19. Bc2 {[%clk 0:02:33]}  Nb4 {[%clk 0:00:22]} 20. Qxg6+ {[%clk 0:02:18]}  Kg8 {[%clk 0:00:23]} 21. Qh7+ {[%clk 0:02:17]}  Kf7 {[%clk 0:00:23]} 22. Bf5 {[%clk 0:02:11]}  Rc6 {[%clk 0:00:14]} 23. Rg1 {[%clk 0:02:09]}  Rg8 {[%clk 0:00:13]} 24. a3 {[%clk 0:01:58]}  Na6 {[%clk 0:00:07]} 25. Rg6 {[%clk 0:01:51]}  Nc4 {[%clk 0:00:02]} 26. Bxh6 {[%clk 0:01:49]} 1-0


[Site "https://www.chess.com"]